bitfinex/quotes_SOLUSD_20220208
["timestamp","ask_amount","ask_price","bid_price","bid_amount"]
[1644357687815,72.53816951,113.12,113.05,12.7669]
[1644357688717,72.53816951,113.12,113.06,39.46653161]
[1644357689117,70.02665459,113.12,113.06,39.46653161]
[1644357689617,72.53816951,113.12,113.06,39.46653161]
[1644357692723,72.53816951,113.12,113.05,12.7669]
[1644357695242,72.53816951,113.12,113.04,59.40220269]
[1644357695442,72.53816951,113.12,113.04,65.65220269]
[1644357696242,78.53816951,113.12,113.04,65.40220269]
[1644357696443,2.52252649,113.11,113.04,65.40220269]
[1644357696643,13.2686,113.1,113.04,19.2682]
[1644357697243,13.2686,113.1,113.04,19.5182]
[1644357697644,36.39177684,113.09,113.04,19.5182]
[1644357703152,36.39177684,113.09,113.04,19.2682]
[1644357704350,37.2635,113.1,113.04,19.2682]
[1644357704552,37.2635,113.1,113.04,19.5182]
[1644357705251,37.2635,113.1,113.05,37.49241459]
[1644357705952,37.2635,113.1,113.05,50.76021459]
[1644357708155,37.2635,113.1,113.05,13.2678]
[1644357708357,37.2635,113.1,113.04,19.2688]
[1644357709259,37.2635,113.1,113.04,59.12758569]
[1644357709661,22.3612842,113.09,113.04,59.12758569]
[1644357709862,35.6301842,113.09,113.04,59.37758569]
[1644357710265,35.6301842,113.09,113.04,59.12758569]
[1644357710461,35.6301842,113.09,113.04,53.12758569]
[1644357711263,35.6301842,113.09,113.03,13.2697]
[1644357711467,35.6301842,113.09,113.01,23.2688]
[1644357712067,38.14169912,113.09,113.0,12.71]
[1644357712366,13.2724,113.06,113.01,13.2722]
[1644357712566,35.1677179,113.05,113.01,13.2722]
[1644357713166,13.2724,113.06,113.01,13.2722]
[1644357714168,13.2724,113.06,113.02,35.01041942]
[1644357715169,13.2724,113.06,113.01,13.2722]
[1644357716069,13.2715,113.07,113.01,13.2722]
[1644357716269,13.2715,113.07,113.01,49.50863508]
[1644357716670,13.2715,113.07,113.01,49.75863508]
[1644357716870,24.20734026,113.06,113.01,49.75863508]
[1644357717470,37.47944026,113.06,113.01,49.50863508]
[1644357718570,13.2721,113.06,113.01,49.50863508]
[1644357718771,13.2721,113.06,113.01,49.75863508]
[1644357719270,13.2714,113.07,113.01,49.50863508]
[1644357719771,34.19424216,113.06,113.01,49.50863508]
[1644357720170,34.19424216,113.06,113.01,13.2722]
[1644357720372,47.46644216,113.06,113.01,13.2722]
[1644357723793,13.2722,113.06,113.01,13.2722]
[1644357723997,46.8835,113.08,113.01,13.2722]
[1644357724194,52.8835,113.08,113.01,13.5222]
[1644357724394,46.8835,113.08,113.01,19.5222]
[1644357724597,46.74501492,113.11,113.01,29.6162]
[1644357724800,63.83130939,113.1,113.02,35.40617307]
[1644357724994,63.83130939,113.1,113.04,13.2687]
[1644357725196,63.83130939,113.1,113.04,53.13642935]
[1644357725797,13.2691,113.09,113.04,53.13642935]
[1644357729901,22.8363,113.1,113.04,53.13642935]
[1644357730104,0.03446474,113.11,113.04,68.96245851]
[1644357730304,0.03446474,113.12,113.04,81.67245851]
[1644357730504,0.03446474,113.12,113.04,170.08245851]
[1644357730704,0.03446474,113.16,113.04,194.15363521]
[1644357730905,0.03446474,113.12,113.04,194.15363521]
[1644357731105,0.03446474,113.15,113.04,353.05363521]
[1644357731305,0.03446474,113.12,113.07,88.41]
[1644357731507,0.03446474,113.14,113.09,13.2563]
[1644357731705,0.03446474,113.17,113.1,12.71]
[1644357731906,0.03446474,113.19,113.1,24.642]
[1644357732207,0.03446474,113.17,113.11,41.96691136]
[1644357732413,0.03446474,113.19,113.11,86.15251136]
[1644357732610,48.59308751,113.2,113.12,13.2557]
[1644357732611,54.62755225,113.2,113.12,13.2557]
[1644357732811,0.03446474,113.19,113.13,45.23065532]
[1644357733011,54.62755225,113.2,113.13,12.234]
[1644357733210,54.62755225,113.2,113.13,12.484]
[1644357733611,54.62755225,113.2,113.13,12.234]
[1644357734012,54.62755225,113.2,113.13,51.83380201]
[1644357734212,13.29096474,113.2,113.14,13.2565]
[1644357734412,23.6813,113.21,113.14,13.2565]
[1644357734413,0.03446474,113.21,113.14,13.2565]
[1644357734616,0.03446474,113.22,113.14,19.5065]
[1644357734817,0.03446474,113.23,113.14,32.2165]
[1644357735012,0.03446474,113.22,113.14,25.9665]
[1644357735219,36.06477305,113.23,113.15,39.8014277]
[1644357735412,2.14222023,113.22,113.15,39.8014277]
[1644357735612,34.60302312,113.21,113.15,39.8014277]
[1644357736011,13.2569,113.2,113.15,39.8014277]
[1644357737114,13.2569,113.2,113.15,53.0569277]
[1644357738317,13.2569,113.2,113.15,39.8014277]
[1644357738719,15.36465549,113.2,113.12,12.71]
[1644357738922,15.39912023,113.2,113.07,23.3486]
[1644357739118,0.03446474,113.19,113.1,0.25]
[1644357739318,13.2604,113.17,113.1,0.25]
[1644357739519,13.29486474,113.17,113.1,0.25]
[1644357739748,13.29486474,113.17,113.1,35.76684551]
[1644357740120,13.29486474,113.17,113.1,41.76684551]
[1644357740822,13.29486474,113.17,113.11,13.26]
[1644357741023,13.2604,113.17,113.12,46.28257959]
[1644357744226,13.2604,113.17,113.12,46.53257959]
[1644357744829,13.2604,113.17,113.12,46.28257959]
[1644357745429,47.86342312,113.17,113.12,46.28257959]
[1644357745629,53.86342312,113.17,113.12,46.28257959]
[1644357745929,47.86342312,113.17,113.12,46.28257959]
[1644357746529,13.2604,113.17,113.12,46.28257959]
[1644357747353,13.2604,113.17,113.11,13.26]
[1644357748356,13.2604,113.17,113.1,19.2611]
[1644357748554,45.70105902,113.16,113.1,67.04939385]
[1644357748757,13.262,113.15,113.1,53.78829385]
[1644357748955,13.262,113.15,113.06,56.9164]
[1644357749156,13.262,113.15,113.08,0.25]
[1644357749858,24.93227241,113.14,113.09,13.2623]
[1644357750058,38.19607241,113.14,113.08,38.57277338]
[1644357750261,38.19607241,113.14,113.08,44.57277338]
[1644357750558,38.19607241,113.14,113.08,6.0]
[1644357751066,38.19607241,113.14,113.05,18.71]
[1644357751258,38.19607241,113.14,113.05,18.96]
[1644357751658,38.19607241,113.14,113.06,43.33381215]
[1644357751861,38.19607241,113.14,113.08,46.79770007]
[1644357752259,38.19607241,113.14,113.08,47.04770007]
[1644357753162,38.19607241,113.14,113.08,0.25]
[1644357753362,38.19607241,113.14,113.07,19.5146]
[1644357754266,38.19607241,113.14,113.08,45.05965378]
[1644357754664,38.19607241,113.14,113.08,45.30965378]
[1644357758170,38.19607241,113.14,113.07,19.2648]
[1644357758367,38.19607241,113.14,113.07,13.5148]
[1644357758575,38.19607241,113.14,113.07,19.5148]
[1644357758967,38.19607241,113.14,113.07,19.2648]
[1644357759171,38.19607241,113.14,113.08,36.66565565]
[1644357760372,38.19607241,113.14,113.08,36.91565565]
[1644357761174,13.2638,113.14,113.08,36.91565565]
[1644357761375,13.2638,113.14,113.08,50.17915565]
[1644357761874,13.2638,113.14,113.08,49.92915565]
[1644357762173,54.43257816,113.14,113.08,50.17915565]
[1644357762373,54.43257816,113.14,113.08,56.17915565]
[1644357763173,54.43257816,113.14,113.08,55.92915565]
[1644357763374,54.43257816,113.14,113.08,56.17915565]
[1644357764679,13.2638,113.14,113.08,56.17915565]
[1644357765676,24.32796474,113.16,113.08,57.52039448]
[1644357765879,0.03446474,113.16,113.08,81.53939448]
[1644357766080,24.18906474,113.17,113.08,81.53939448]
[1644357766479,0.03446474,113.17,113.08,81.53939448]
[1644357766680,0.03446474,113.18,113.08,81.53939448]
[1644357777707,0.03446474,113.18,113.08,110.51738373]
[1644357777908,0.03446474,113.18,113.08,118.54564797]
[1644357778109,1.29145301,113.2,113.08,119.79322393]
[1644357778308,0.03446474,113.17,113.11,35.02127789]
[1644357778508,0.03446474,113.19,113.12,25.9617]
[1644357778710,0.03446474,113.21,113.13,34.41754813]
[1644357778908,1.29145301,113.22,113.15,43.89385305]
[1644357779107,1.29145301,113.23,113.15,49.89385305]
[1644357779310,1.29145301,113.23,113.15,50.14385305]
[1644357779710,1.29145301,113.23,113.15,63.39555305]
[1644357780814,1.29145301,113.23,113.15,76.10555305]
[1644357781513,30.44667239,113.22,113.15,76.10555305]
[1644357781714,31.70366066,113.22,113.15,76.10555305]
[1644357782815,44.95796066,113.22,113.15,76.10555305]
[1644357783516,44.95796066,113.22,113.15,75.85555305]
[1644357783716,44.95796066,113.22,113.15,76.10555305]
[1644357783916,44.95796066,113.22,113.15,32.2117]
[1644357784115,43.70097239,113.22,113.15,19.2517]
[1644357784620,51.80872788,113.22,113.15,6.0]
[1644357784817,40.18665904,113.2,113.15,0.25]
[1644357785217,26.1158318,113.21,113.15,0.25]
[1644357785419,1.28919654,113.22,113.15,11.151]
[1644357785618,1.28919654,113.23,113.15,17.151]
[1644357786219,39.19814761,113.22,113.16,40.53049268]
[1644357786418,39.19814761,113.22,113.17,13.2526]
[1644357786819,39.19814761,113.22,113.17,13.5026]
[1644357787620,39.19814761,113.22,113.17,13.2526]
[1644357787821,39.19814761,113.22,113.16,13.2547]
[1644357788021,40.45287941,113.22,113.15,6.0]
[1644357788220,1.2547318,113.21,113.14,6.0]
[1644357788423,1.2547318,113.21,113.12,18.96]
[1644357788424,24.01549654,113.21,113.12,18.96]
[1644357788822,31.43518382,113.2,113.13,35.90672899]
[1644357789022,36.01686474,113.21,113.14,13.2565]
[1644357789225,22.7263,113.21,113.14,19.5065]
[1644357789422,22.7263,113.21,113.14,32.2165]
[1644357789826,0.03446474,113.22,113.14,32.2165]
[1644357790023,0.03446474,113.22,113.15,43.45914737]
[1644357790024,37.55828403,113.22,113.15,43.45914737]
[1644357790224,37.59274877,113.22,113.17,13.2532]
[1644357790423,37.55828403,113.22,113.17,13.2532]
[1644357790625,37.55828403,113.22,113.17,13.5032]
[1644357791326,37.55828403,113.22,113.17,56.64927257]
[1644357792630,14.54279654,113.23,113.17,56.64927257]
[1644357792830,14.5083318,113.23,113.17,56.64927257]
[1644357793429,1.2547318,113.22,113.17,56.64927257]
[1644357793831,14.5083318,113.23,113.17,56.64927257]
[1644357795337,1.2547318,113.22,113.17,56.64927257]
[1644357796738,31.72826398,113.22,113.17,56.64927257]
[1644357798336,1.2547318,113.22,113.17,56.64927257]
[1644357798535,14.5079318,113.23,113.17,56.64927257]
[1644357799137,14.5079318,113.23,113.17,62.64927257]
[1644357799336,1.2547318,113.22,113.17,56.64927257]
[1644357799637,14.5079318,113.23,113.17,56.64927257]
[1644357801241,1.2547318,113.23,113.17,56.64927257]
[1644357801441,85.91372772,113.24,113.17,56.64927257]
[1644357801442,1.2547318,113.22,113.17,56.64927257]
[1644357801642,1.2547318,113.23,113.17,56.64927257]
[1644357801843,1.28919654,113.23,113.17,56.64927257]
[1644357802044,1.2547318,113.23,113.17,56.64927257]
[1644357802443,1.2547318,113.22,113.17,56.64927257]
[1644357803647,23.26868136,113.22,113.17,56.64927257]
[1644357804046,23.26868136,113.22,113.17,13.5032]
[1644357805147,23.26868136,113.22,113.17,62.26234281]
[1644357806048,1.2547318,113.22,113.17,62.26234281]
[1644357807366,1.2547318,113.21,113.17,62.26234281]
[1644357808267,7.2547318,113.21,113.17,62.26234281]
[1644357809772,1.2547318,113.21,113.17,62.26234281]
[1644357810970,1.2547318,113.22,113.17,62.26234281]
[1644357811572,1.2547318,113.21,113.14,12.71]
[1644357811771,1.2547318,113.2,113.13,56.8918]
[1644357811972,1.28919654,113.2,113.13,12.71]
[1644357812170,1.28919654,113.2,113.11,18.71]
[1644357812370,1.28919654,113.2,113.11,12.71]
[1644357812571,35.15326118,113.19,113.12,40.69867853]
[1644357812775,48.41016118,113.19,113.14,13.2568]
[1644357812974,48.41016118,113.19,113.09,1.24648014]
[1644357813173,48.41016118,113.19,113.08,31.57078742]
[1644357813174,24.5065,113.18,113.08,31.57078742]
[1644357813378,0.03446474,113.17,113.08,15.63026998]
[1644357813576,0.03446474,113.17,113.08,14.38378984]
[1644357813974,0.03446474,113.17,113.09,35.3560465]
[1644357814175,25.79569654,113.18,113.09,35.3560465]
[1644357814375,0.03446474,113.17,113.09,41.6060465]
[1644357814576,25.79569654,113.18,113.09,41.6060465]
[1644357814777,13.261,113.16,113.11,13.2603]
[1644357815374,13.261,113.16,113.11,13.5103]
[1644357815574,35.48007025,113.15,113.09,35.3560465]
[1644357815775,35.48007025,113.15,113.07,12.71]
[1644357815975,35.48007025,113.15,113.08,6.0]
[1644357816175,48.74177025,113.15,113.09,13.2624]
[1644357816778,48.74177025,113.15,113.07,36.03243879]
[1644357817776,48.74177025,113.15,113.08,13.2638]
[1644357818178,71.53587025,113.15,113.07,36.28243879]
[1644357818983,71.53587025,113.15,113.07,36.03243879]
[1644357819180,71.53587025,113.15,113.06,0.024]
[1644357819481,94.86237025,113.15,113.07,13.2649]
[1644357819883,94.86237025,113.15,113.07,13.5149]
[1644357821494,100.86237025,113.15,113.06,13.2903]
[1644357821682,100.86237025,113.15,113.06,13.2663]
[1644357821888,100.86237025,113.15,113.06,13.2903]
[1644357822085,100.86237025,113.15,113.06,13.2663]
[1644357823084,110.94237025,113.15,113.06,13.2663]
[1644357823686,110.94237025,113.15,113.06,13.2903]
[1644357824489,113.05012574,113.15,113.06,0.024]
[1644357824687,125.76012574,113.15,113.04,0.024]
[1644357824887,125.76012574,113.15,113.06,0.024]
[1644357824888,180.02485754,113.15,113.06,0.024]
[1644357825088,13.2739,113.11,113.03,0.024]
[1644357825287,13.2739,113.11,112.98,13.95648014]
[1644357825288,23.2979,113.11,113.0,0.024]
[1644357825488,95.85511667,113.1,112.99,42.08527842]
[1644357825888,95.85511667,113.1,113.0,0.024]
[1644357826096,35.48007025,113.06,113.0,0.024]
[1644357827690,13.2747,113.05,113.0,0.024]
[1644357827890,13.2747,113.05,112.99,55.60937842]
[1644357829492,13.2747,113.05,112.99,13.5241]
[1644357829692,13.2747,113.05,112.98,13.2751]
[1644357829892,13.2747,113.05,112.98,13.2991]
[1644357830693,13.2747,113.05,112.99,37.92102569]
[1644357831092,13.2747,113.05,112.98,0.024]
[1644357831293,13.2747,113.05,112.97,13.3002]
[1644357831895,36.3992,113.05,112.97,13.3002]
[1644357832193,36.3992,113.05,112.97,49.66817416]
[1644357834017,36.3992,113.05,112.97,55.66817416]
[1644357834818,36.3992,113.05,112.97,49.66817416]
[1644357835018,36.3992,113.05,112.97,55.66817416]
[1644357835220,36.3992,113.05,112.97,19.5502]
[1644357835419,44.50695549,113.05,112.97,0.024]
[1644357835618,69.24425549,113.05,112.97,0.024]
[1644357836020,67.1365,113.05,112.97,0.024]
[1644357836720,69.24425549,113.05,112.97,0.024]
[1644357836921,67.1365,113.05,112.97,0.024]
[1644357837421,69.24425549,113.05,112.97,0.024]
[1644357837622,69.24425549,113.05,112.95,13.3026]
[1644357837820,69.24425549,113.05,112.96,0.024]
[1644357841026,81.95425549,113.05,112.96,0.024]
[1644357841828,81.95425549,113.05,112.94,48.68546141]
[1644357842028,92.63925549,113.05,112.95,0.024]
[1644357842227,92.63925549,113.05,112.94,0.024]
[1644357842727,92.63925549,113.05,112.92,0.024]
[1644357842930,102.42388824,113.05,112.91,0.024]
[1644357843227,102.74380754,113.05,112.91,13.3071]
[1644357843431,102.74380754,113.05,112.91,12.8071]
[1644357844226,102.74380754,113.05,112.91,13.0571]
[1644357844427,102.42388824,113.05,112.91,13.0571]
[1644357844629,103.67862004,113.05,112.91,13.0571]
[1644357844827,117.7014823,113.05,112.91,13.0571]
[1644357845429,118.9562141,113.05,112.91,13.0571]
[1644357845630,9.24619892,113.04,112.91,13.0571]
[1644357845829,35.15326118,113.0,112.91,12.8071]
[1644357846029,22.8983,112.99,112.9,22.8019]
[1644357846929,22.8983,112.99,112.89,13.2844]
[1644357847132,35.48007025,112.96,112.87,35.50028974]
[1644357847329,47.44707025,112.96,112.87,35.50028974]
[1644357847528,49.55482574,112.96,112.87,35.50028974]
[1644357847731,47.44707025,112.96,112.87,35.50028974]
[1644357847931,78.28287025,112.96,112.87,35.50028974]
[1644357848534,90.99287025,112.96,112.87,35.50028974]
[1644357848735,13.2903,112.94,112.87,35.50028974]
[1644357848936,13.2903,112.94,112.86,13.2887]
[1644357849234,13.2903,112.94,112.83,80.583]
[1644357849437,23.6212,112.93,112.83,86.583]
[1644357850034,35.15326118,112.92,112.84,47.73484931]
[1644357850436,35.15326118,112.92,112.84,53.73484931]
[1644357850636,35.15326118,112.92,112.84,53.98484931]
[1644357850835,48.44186118,112.92,112.86,13.2886]
[1644357851040,13.2886,112.92,112.86,13.2886]
[1644357851237,13.2886,112.92,112.86,19.5386]
[1644357851439,13.2886,112.92,112.86,19.2886]
[1644357851635,13.2886,112.92,112.86,19.5386]
[1644357852035,52.28753356,112.92,112.86,19.5386]
[1644357852238,52.28753356,112.92,112.86,13.2886]
[1644357852438,52.28753356,112.92,112.84,13.2903]
[1644357852639,62.18753356,112.92,112.84,13.2903]
[1644357853037,62.18753356,112.92,112.81,12.71]
[1644357853237,62.18753356,112.92,112.78,12.71]
[1644357853238,13.2962,112.88,112.78,12.71]
[1644357853437,31.63439787,112.87,112.77,2.419675]
[1644357853639,55.21829787,112.87,112.77,2.419675]
[1644357854038,2.10775549,112.86,112.77,2.419675]
[1644357854238,55.21829787,112.87,112.77,2.419675]
[1644357854844,35.84311926,112.83,112.77,15.718575]
[1644357855441,35.84311926,112.83,112.77,2.419675]
[1644357856042,49.14321926,112.83,112.77,1.919675]
[1644357856244,49.14321926,112.83,112.77,7.919675]
[1644357856641,49.14321926,112.83,112.77,8.169675]
[1644357856843,49.14321926,112.83,112.77,7.919675]
[1644357857446,35.84311926,112.83,112.77,7.919675]
[1644357857850,57.045,112.86,112.77,7.919675]
[1644357858048,57.045,112.86,112.77,8.169675]
[1644357858049,44.335,112.86,112.77,8.169675]
[1644357858446,13.2979,112.85,112.77,21.468575]
[1644357858646,23.5839,112.87,112.77,21.492575]
[1644357859046,40.45132256,112.86,112.78,0.024]
[1644357859647,40.45132256,112.86,112.79,51.60043041]
[1644357859854,40.45132256,112.86,112.79,51.87443041]
[1644357860050,103.0,112.85,112.77,1.919675]
[1644357860447,55.26907805,112.86,112.77,1.919675]
[1644357860648,53.16132256,112.86,112.77,1.919675]
[1644357861053,13.3002,112.84,112.77,47.39963166]
[1644357861250,35.5348,112.87,112.77,47.39963166]
[1644357861450,22.8248,112.87,112.77,53.64963166]
[1644357862249,48.1533171,112.86,112.77,53.64963166]
[1644357862848,61.4511171,112.86,112.77,66.94873166]
[1644357863247,61.4511171,112.86,112.77,65.02905666]
[1644357864449,61.4511171,112.86,112.77,64.77905666]
[1644357865151,13.2978,112.86,112.77,64.77905666]
[1644357865349,44.3274,112.88,112.77,64.77905666]
[1644357865350,13.295,112.88,112.77,64.77905666]
[1644357865550,13.3885,112.92,112.82,13.2918]
[1644357865751,104.8533,112.94,112.82,23.0168]
[1644357865951,92.1433,112.94,112.82,41.7268]
[1644357866153,35.22209505,112.93,112.83,40.57676867]
[1644357866352,35.22209505,112.93,112.83,40.82676867]
[1644357866552,35.22209505,112.93,112.83,46.82676867]
[1644357867654,35.22209505,112.93,112.83,46.57676867]
[1644357867854,13.2915,112.91,112.81,12.71]
[1644357868056,13.2915,112.91,112.81,0.25]
[1644357868255,13.2915,112.91,112.8,12.71]
[1644357868453,13.2915,112.91,112.8,18.71]
[1644357868953,22.09123638,112.9,112.81,40.11262828]
[1644357869154,35.22209505,112.88,112.82,13.2923]
[1644357869553,35.22209505,112.88,112.82,13.5423]
[1644357870054,35.22209505,112.88,112.82,13.2923]
[1644357870457,48.51619505,112.88,112.81,13.2945]
[1644357871256,48.51619505,112.88,112.79,6.0]
[1644357871455,48.51619505,112.88,112.77,57.0288]
[1644357871657,48.51619505,112.88,112.77,63.0288]
[1644357871857,48.51619505,112.88,112.77,63.2788]
[1644357872056,48.51619505,112.88,112.77,0.25]
[1644357872255,61.22619505,112.88,112.74,62.2316]
[1644357872457,61.22619505,112.88,112.75,39.12700435]
[1644357872656,61.22619505,112.88,112.75,45.12700435]
[1644357872857,22.09123638,112.86,112.75,45.37700435]
[1644357873057,35.22209505,112.83,112.77,13.2991]
[1644357873355,35.22209505,112.83,112.77,13.5491]
[1644357874870,35.22209505,112.83,112.77,19.5491]
[1644357875059,35.22209505,112.83,112.77,56.24611626]
[1644357875260,35.22209505,112.83,112.77,13.5491]
[1644357876160,35.22209505,112.83,112.77,19.5491]
[1644357876361,35.22209505,112.83,112.78,41.53689579]
[1644357876563,35.22209505,112.83,112.78,54.83489579]
[1644357876760,35.22209505,112.83,112.78,55.08489579]
[1644357876960,35.22209505,112.83,112.78,54.83489579]
[1644357877163,35.22209505,112.83,112.78,13.298]
[1644357879363,35.22209505,112.83,112.77,13.2993]
[1644357879563,35.22209505,112.83,112.77,19.2993]
[1644357879763,35.22209505,112.83,112.77,19.5493]
[1644357880163,35.22209505,112.83,112.77,0.25]
[1644357880364,35.22209505,112.83,112.76,13.3244]
[1644357880565,35.22209505,112.83,112.76,13.3004]
[1644357880765,35.22209505,112.83,112.76,13.5744]
[1644357882164,58.57979505,112.83,112.76,0.024]
[1644357882371,60.68755054,112.83,112.75,6.0]
[1644357882565,64.57979505,112.83,112.75,0.024]
[1644357887176,66.68755054,112.83,112.75,0.024]
[1644357887373,66.68755054,112.83,112.72,1.24648014]
[1644357887374,13.3061,112.79,112.72,1.27048014]
[1644357887572,13.3061,112.79,112.73,0.024]
[1644357887573,25.7351,112.79,112.73,0.024]
[1644357887773,25.7351,112.79,112.72,1.27048014]
[1644357887973,25.7351,112.79,112.71,1.24648014]
[1644357887974,22.09123638,112.78,112.71,1.24648014]
[1644357888172,22.09123638,112.78,112.72,1.24648014]
[1644357888374,22.09123638,112.78,112.72,14.55198014]
[1644357888573,22.09123638,112.78,112.72,14.80198014]
[1644357888873,22.09123638,112.78,112.72,13.5555]
[1644357889073,22.09123638,112.78,112.72,13.3055]
[1644357890696,22.09123638,112.78,112.72,13.5555]
[1644357890897,22.09123638,112.78,112.72,57.19688611]
[1644357891293,22.09123638,112.78,112.72,13.3055]
[1644357891500,35.39773638,112.78,112.71,13.3305]
[1644357891698,45.44173638,112.78,112.71,13.3305]
[1644357892397,45.44173638,112.78,112.72,48.50055579]
[1644357892697,22.09123638,112.78,112.72,61.80615579]
[1644357893098,22.09123638,112.78,112.72,62.05615579]
[1644357893302,22.09123638,112.78,112.72,13.3056]
[1644357893601,13.3064,112.78,112.71,0.024]
[1644357893800,46.8782,112.8,112.71,0.024]
[1644357894002,46.8782,112.8,112.71,1.37233518]
[1644357894198,46.8782,112.8,112.72,0.024]
[1644357894600,46.8782,112.8,112.7,13.331]
[1644357894601,59.82666517,112.79,112.7,13.331]
[1644357894809,59.82666517,112.79,112.71,0.024]
[1644357894999,24.3045,112.78,112.71,0.024]
[1644357895199,10.79196626,112.77,112.71,0.024]
[1644357895399,24.3045,112.78,112.69,50.32022998]
[1644357895605,13.3073,112.77,112.71,14.65513518]
[1644357895800,12.71,112.82,112.72,0.024]
[1644357895998,44.346,112.83,112.71,1.59833518]
[1644357896202,50.346,112.83,112.72,1.37233518]
[1644357896403,50.346,112.83,112.73,41.16932102]
[1644357896603,43.68194298,112.82,112.74,0.024]
[1644357896999,6.0,112.83,112.74,14.67516899]
[1644357897200,48.7635,112.85,112.75,0.024]
[1644357897799,48.7635,112.85,112.76,1.34816899]
[1644357898000,42.45695283,112.84,112.77,0.024]
[1644357898599,55.75615283,112.84,112.77,49.72471561]
[1644357898804,55.75615283,112.84,112.77,49.70071561]
[1644357899000,55.75615283,112.84,112.77,49.97471561]
[1644357899400,55.75615283,112.84,112.77,49.95071561]
[1644357900504,13.2992,112.84,112.77,49.95071561]
[1644357900702,62.0615,112.85,112.77,49.95071561]
[1644357901313,1.2547318,112.88,112.77,61.9838846]
[1644357901505,1.2547318,112.89,112.78,12.734]
[1644357901702,85.34555709,112.91,112.78,12.734]
[1644357901703,86.60028889,112.91,112.81,13.2916]
[1644357901903,86.60028889,112.91,112.82,43.20868669]
[1644357901904,85.34555709,112.91,112.82,43.20868669]
[1644357902105,62.704,112.91,112.83,0.024]
[1644357903103,36.4765317,112.9,112.83,0.024]
[1644357903303,36.4765317,112.9,112.82,43.43468669]
[1644357903505,36.4765317,112.9,112.82,43.45868669]
[1644357903703,36.4765317,112.9,112.84,13.2916]
[1644357904106,62.704,112.91,112.84,13.5416]
[1644357904508,62.704,112.91,112.84,13.2916]
[1644357904914,68.704,112.91,112.83,13.3166]
[1644357905108,45.65716017,112.9,112.83,13.3166]
[1644357905308,58.94976017,112.9,112.84,37.10397267]
[1644357906109,1.2547318,112.93,112.84,57.74384166]
[1644357906309,1.2547318,112.94,112.84,57.99384166]
[1644357906511,1.2547318,112.95,112.85,12.71]
[1644357906711,6.0,112.95,112.85,18.96]
[1644357907009,43.74783382,112.95,112.86,39.32883348]
[1644357907211,49.74783382,112.95,112.88,13.286]
[1644357907411,49.74783382,112.95,112.88,62.0894319]
[1644357907611,49.74783382,112.95,112.88,62.3394319]
[1644357908210,49.74783382,112.95,112.88,13.536]
[1644357908910,63.03473382,112.95,112.88,13.536]
[1644357909115,63.03473382,112.95,112.85,12.71]
[1644357909311,63.03473382,112.95,112.86,0.25]
[1644357909511,63.03473382,112.95,112.85,43.92120748]
[1644357909711,63.03473382,112.95,112.85,44.17120748]
[1644357909911,13.56549761,112.93,112.85,44.17120748]
[1644357910112,37.0169,112.94,112.85,44.17120748]
[1644357910312,23.7287,112.94,112.86,13.2891]
[1644357910712,23.7287,112.94,112.86,13.5391]
[1644357911113,42.6783872,112.93,112.87,43.20809667]
[1644357911412,42.6783872,112.93,112.87,43.45809667]
[1644357911614,42.6783872,112.93,112.88,13.2868]
[1644357911813,42.6783872,112.93,112.88,13.5368]
[1644357915319,23.7287,112.94,112.88,13.5368]
[1644357916422,23.7287,112.94,112.89,34.23119206]
[1644357917022,23.7287,112.94,112.88,13.5368]
[1644357917422,37.0161,112.94,112.88,13.2868]
[1644357917821,37.0161,112.94,112.88,13.5368]
[1644357918426,17.85108872,112.93,112.88,0.25]
[1644357918626,31.13988872,112.93,112.84,12.71]
[1644357918824,31.13988872,112.93,112.84,12.96]
[1644357919024,31.13988872,112.93,112.84,18.96]
[1644357919228,31.13988872,112.93,112.84,12.96]
[1644357919425,31.13988872,112.93,112.85,40.05345587]
[1644357919826,31.13988872,112.93,112.85,40.30345587]
[1644357920129,31.13988872,112.93,112.85,38.95004349]
[1644357920827,31.13988872,112.93,112.85,52.24054349]
[1644357921230,31.13988872,112.93,112.85,13.5405]
[1644357921628,37.13988872,112.93,112.85,13.5405]
[1644357921830,31.13988872,112.93,112.84,13.2916]
[1644357922027,63.71264421,112.93,112.83,0.024]
[1644357922228,24.8347,112.92,112.8,41.30813766]
[1644357922429,13.2951,112.89,112.81,0.024]
[1644357922628,17.85108872,112.88,112.81,0.024]